fUST/lending_fUST_20251023
["ID","MTS","AMOUNT","RATE_DAILY","PERIOD"]
[392170979,1761231045276,500.0,0.00036028,60]
[392170981,1761231045529,500.0,0.00036028,60]
[392171009,1761231045810,500.0,0.00036028,60]
[392171034,1761231046059,500.0,0.00036028,60]
[392171059,1761231046299,500.0,0.00036028,60]
[392171085,1761231046556,500.0,0.00036028,60]
[392171099,1761231046820,500.0,0.00036028,60]
[392171103,1761231046853,-10746.64165883,0.00023599,2]
[392171143,1761231048691,-680.90757339,0.00023599,2]
[392171144,1761231048704,-376.68,0.00023599,2]
[392171145,1761231048738,500.0,0.00036028,60]
[392171146,1761231048867,408.58,0.00036028,60]
[392171154,1761231084999,500.0,0.00036028,60]
[392171155,1761231092708,150.0,0.00021695,2]
[392171156,1761231093174,150.0,0.00022728,2]
[392171157,1761231117275,523.21989355,0.00036028,60]
[392171158,1761231120359,597.3,0.00036028,60]
[392171159,1761231123911,500.0,0.00036028,60]
[392171160,1761231146282,500.0,0.00036028,30]
[392171161,1761231146314,500.0,0.00036028,60]
[392171162,1761231146680,500.0,0.00036028,30]
[392171163,1761231147008,500.0,0.00036028,30]
[392171164,1761231147236,500.0,0.00036028,30]
[392171165,1761231164846,150.0,0.00020641,2]
[392171166,1761231165313,150.0,0.00021624,2]
[392171167,1761231165744,150.0,0.00022606,2]
[392171168,1761231175017,448.38414747,0.00023526,2]
[392171169,1761231177753,31423.79,0.00036029,60]
[392171170,1761231178021,31423.79,0.00036029,60]
[392171171,1761231178360,31423.79,0.00036029,60]
[392171172,1761231178503,807.45858074,0.00023526,2]
[392171173,1761231178564,31423.79,0.00036029,60]
[392171174,1761231178819,31423.79,0.00036029,60]
[392171175,1761231179063,31423.79,0.00036029,60]
[392171176,1761231179314,31423.79,0.00036029,60]
[392171177,1761231179567,31423.79,0.00036029,60]
[392171178,1761231179818,31423.79,0.00036029,60]
[392171179,1761231180068,31423.79,0.00036029,60]
[392171180,1761231180376,31423.79,0.00036029,60]
[392171181,1761231180777,500.0,0.00036029,60]
[392171182,1761231181003,31423.79,0.00036029,60]
[392171183,1761231181288,31423.79,0.00036029,60]
[392171184,1761231181525,31423.79,0.00036029,60]
[392171185,1761231181776,31423.79,0.00036029,60]
[392171186,1761231182015,31423.79,0.00036029,60]
[392171187,1761231182328,31423.79,0.00036029,60]
[392171188,1761231182587,31423.79,0.00036029,60]
[392171189,1761231182838,31423.79,0.00036029,60]
[392171190,1761231183340,31423.79,0.00036029,60]
[392171191,1761231183585,31423.79,0.00036029,60]
[392171192,1761231183831,31423.79,0.00036029,60]
[392171193,1761231184099,31423.79,0.00036029,60]
[392171194,1761231184347,31423.834628,0.00036029,60]
[392171195,1761231184731,500.0,0.00036029,60]
[392171196,1761231187431,500.0,0.00036029,60]
[392171197,1761231193876,500.0,0.00036029,60]
[392171198,1761231194126,500.0,0.00036029,60]
[392171199,1761231194379,500.0,0.00036029,60]
[392171200,1761231194665,500.0,0.00036029,60]
[392171201,1761231194910,500.0,0.00036029,60]
[392171202,1761231195250,500.0,0.00036029,60]
[392171203,1761231195535,500.0,0.00036029,60]
[392171204,1761231195775,500.0,0.00036029,60]
[392171205,1761231196015,500.0,0.00036029,60]
[392171206,1761231196242,500.0,0.00036029,60]
[392171207,1761231196501,500.0,0.00036029,60]
[392171208,1761231196531,947.58,0.00036029,60]
[392171209,1761231196755,269.00000001,0.00036029,60]
[392171210,1761231196786,947.58,0.00036029,60]
[392171211,1761231197042,947.58,0.00036029,60]
[392171212,1761231197276,947.58,0.00036029,60]
[392171213,1761231197548,947.58,0.00036029,60]
[392171214,1761231197798,947.58,0.00036029,60]
[392171215,1761231198026,947.58,0.00036029,60]
[392171216,1761231198490,947.58,0.00036029,60]
[392171217,1761231199066,947.58,0.00036029,60]
[392171218,1761231199242,947.58,0.00036029,60]
[392171219,1761231199515,947.58,0.00036029,60]
[392171220,1761231199880,947.58,0.00036029,60]
[392171221,1761231200151,947.58,0.00036029,60]
[392171222,1761231200268,500.0,0.00036029,60]
[392171223,1761231200391,947.58,0.00036029,60]
[392171224,1761231200620,947.58,0.00036029,60]
[392171225,1761231200863,947.58,0.00036029,60]
[392171226,1761231201507,947.58,0.00036029,60]
[392171227,1761231201757,947.58,0.00036029,60]
[392171228,1761231202194,947.58,0.00036029,60]
[392171229,1761231202504,947.58,0.00036029,60]
[392171230,1761231202784,947.58,0.00036029,60]
[392171231,1761231203018,947.58,0.00036029,60]
[392171232,1761231203266,947.58,0.00036029,60]
[392171233,1761231203507,947.61440622,0.00036029,60]
[392171234,1761231208898,2344.85,0.00036029,60]
[392171235,1761231209313,2344.85,0.00036029,60]
[392171236,1761231209572,2344.85,0.00036029,60]
[392171237,1761231209830,2344.85,0.00036029,60]
[392171238,1761231210081,2344.85,0.00036029,60]
[392171239,1761231210676,2344.85,0.00036029,60]
[392171240,1761231210932,2344.85,0.00036029,60]
[392171241,1761231211175,2344.85,0.00036029,60]
[392171242,1761231211425,2344.85,0.00036029,60]
[392171243,1761231211702,2344.85,0.00036029,60]
[392171244,1761231211976,2344.85,0.00036029,60]
[392171245,1761231212237,2344.85,0.00036029,60]
[392171246,1761231212514,2344.85,0.00036029,60]
[392171247,1761231212776,2344.85,0.00036029,60]
[392171248,1761231213068,2344.85,0.00036029,60]
[392171249,1761231213340,2344.85,0.00036029,60]
[392171250,1761231213580,2344.85,0.00036029,60]
[392171251,1761231213825,2344.85,0.00036029,60]
[392171252,1761231214121,2344.85,0.00036029,60]
[392171253,1761231214356,2344.85,0.00036029,60]
[392171254,1761231214642,2344.85,0.00036029,60]
[392171255,1761231214888,2344.85,0.00036029,60]
[392171256,1761231215161,2344.85,0.00036029,60]
[392171257,1761231215429,2344.9,0.00036029,60]
[392171258,1761231218045,500.0,0.00036029,60]
[392171259,1761231218295,500.0,0.00036029,60]
[392171260,1761231218543,500.0,0.00036029,60]
[392171261,1761231218790,500.0,0.00036029,60]
[392171262,1761231218962,665.6,0.00036029,60]
[392171263,1761231219057,500.0,0.00036029,60]
[392171264,1761231219232,665.6,0.00036029,60]
[392171265,1761231219384,500.0,0.00036029,60]
[392171266,1761231219489,665.6,0.00036029,60]
[392171267,1761231219566,500.0,0.00036029,60]
[392171268,1761231219740,665.6,0.00036029,60]
[392171269,1761231219832,500.0,0.00036029,60]
[392171270,1761231220012,665.6,0.00036029,60]
[392171271,1761231220070,500.0,0.00036029,60]
[392171272,1761231220276,665.6,0.00036029,60]
[392171273,1761231220319,500.0,0.00036029,60]
[392171274,1761231220659,665.6,0.00036029,60]
[392171275,1761231220709,500.0,0.00036029,60]
[392171276,1761231220809,500.0,0.00036029,60]
[392171277,1761231220841,665.6,0.00036029,60]
[392171278,1761231220994,5270.97,0.00036029,60]
[392171279,1761231221055,500.0,0.00036029,60]
[392171280,1761231221121,665.6,0.00036029,60]
[392171281,1761231221237,5270.97,0.00036029,60]
[392171282,1761231221298,500.0,0.00036029,60]
[392171283,1761231221373,665.6,0.00036029,60]
[392171284,1761231221491,5270.97,0.00036029,60]
[392171285,1761231221599,500.0,0.00036029,60]
[392171286,1761231221634,665.6,0.00036029,60]
[392171287,1761231221766,5270.97,0.00036029,60]
[392171288,1761231221867,500.0,0.00036029,60]
[392171289,1761231221911,665.6,0.00036029,60]
[392171290,1761231222038,5270.97,0.00036029,60]
[392171291,1761231222142,500.0,0.00036029,60]
[392171292,1761231222192,665.6,0.00036029,60]
[392171293,1761231222278,5270.97,0.00036029,60]
[392171294,1761231222384,500.0,0.00036029,60]
[392171295,1761231222456,665.6,0.00036029,60]
[392171296,1761231222533,5270.97,0.00036029,60]
[392171297,1761231222621,557.98858172,0.00036029,60]
[392171298,1761231222718,665.6,0.00036029,60]
[392171299,1761231222783,5270.97,0.00036029,60]
[392171300,1761231222989,665.6,0.00036029,60]
[392171301,1761231223032,5270.97,0.00036029,60]
[392171302,1761231223240,665.6,0.00036029,60]
[392171303,1761231223284,5270.97,0.00036029,60]
[392171304,1761231223501,665.6,0.00036029,60]
[392171305,1761231223635,5270.97,0.00036029,60]
[392171306,1761231223769,665.6,0.00036029,60]
[392171307,1761231224004,5270.97,0.00036029,60]
[392171308,1761231224064,665.6,0.00036029,60]
[392171309,1761231224263,5270.97,0.00036029,60]
[392171310,1761231224308,665.6,0.00036029,60]
[392171311,1761231224477,500.0,0.00036029,60]
[392171312,1761231224530,5270.97,0.00036029,60]
[392171313,1761231224579,665.6,0.00036029,60]
[392171314,1761231224757,500.0,0.00036029,60]
[392171315,1761231224810,5270.97,0.00036029,60]
[392171316,1761231224852,665.6,0.00036029,60]
[392171317,1761231225009,500.0,0.00036029,60]
[392171318,1761231225089,665.60703871,0.00036029,60]
[392171319,1761231225266,644.79423905,0.00036029,60]
[392171320,1761231225611,5270.97,0.00036029,60]
[392171321,1761231225846,5270.97,0.00036029,60]
[392171322,1761231226078,5270.97,0.00036029,60]
[392171323,1761231226329,5270.97,0.00036029,60]
[392171324,1761231226598,5270.97,0.00036029,60]
[392171325,1761231226834,5270.97,0.00036029,60]
[392171326,1761231227087,5270.97,0.00036029,60]
[392171327,1761231227328,5270.97,0.00036029,60]
[392171328,1761231227568,5271.06364893,0.00036029,60]
[392171329,1761231227622,500.0,0.00036029,60]
[392171330,1761231232476,332.38601204,0.00036029,60]
[392171331,1761231233192,500.0,0.00036029,60]
[392171332,1761231234796,150.0,0.00020546,2]
[392171333,1761231235202,150.0,0.00021524,2]
[392171334,1761231235740,150.0,0.00022503,2]
[392171335,1761231236214,500.0,0.00036029,60]
[392171336,1761231236243,150.0,0.00023481,2]
[392171337,1761231250723,500.0,0.00036029,60]
[392171338,1761231250927,500.0,0.00036029,60]
[392171339,1761231250958,500.0,0.00036029,60]
[392171340,1761231251200,393.24109188,0.00036029,60]
[392171341,1761231257966,500.0,0.00036029,30]
[392171342,1761231258225,295.07,0.00036029,30]
[392171343,1761231283875,500.0,0.00036029,60]
[392171344,1761231284111,541.66666667,0.00036029,60]
[392171345,1761231290930,500.0,0.00036029,60]
[392171346,1761231291176,500.0,0.00036029,60]
[392171347,1761231291479,500.0,0.00036029,60]
[392171348,1761231291734,500.0,0.00036029,60]
[392171349,1761231291990,500.0,0.00036029,60]
[392171350,1761231292230,500.0,0.00036029,60]
[392171351,1761231292496,500.0,0.00036029,60]
[392171352,1761231292735,500.0,0.00036029,60]
[392171353,1761231292983,500.0,0.00036029,60]
[392171354,1761231293234,500.0,0.00036029,60]
[392171355,1761231293525,500.0,0.00036029,60]
[392171356,1761231293967,500.0,0.00036029,60]
[392171357,1761231294043,500.0,0.00036029,60]
[392171358,1761231294304,500.0,0.00036029,60]
[392171359,1761231294749,500.0,0.00036029,60]
[392171360,1761231295047,500.0,0.00036029,60]
[392171361,1761231295300,500.0,0.00036029,60]
[392171362,1761231295887,500.0,0.00036029,60]
[392171363,1761231296135,500.0,0.00036029,60]
[392171364,1761231296385,500.0,0.00036029,60]
[392171365,1761231296901,500.0,0.00036029,60]
[392171366,1761231301799,150.0,0.00020644,2]
[392171368,1761231317781,500.0,0.00036029,60]
[392171369,1761231318058,491.85229684,0.00036029,60]
[392171370,1761231324069,500.0,0.00036029,60]
[392171371,1761231324517,500.0,0.00036029,60]
[392171372,1761231324598,500.0,0.00036029,60]
[392171373,1761231325007,500.0,0.00036029,60]
[392171374,1761231325268,500.0,0.00036029,60]
[392171375,1761231325526,500.0,0.00036029,60]
[392171376,1761231326342,500.0,0.00036029,60]
[392171377,1761231326611,500.0,0.00036029,60]
[392171378,1761231326847,500.0,0.00036029,60]
[392171379,1761231327087,500.0,0.00036029,60]
[392171380,1761231327320,500.0,0.00036029,60]
[392171381,1761231327555,500.0,0.00036029,60]
[392171382,1761231327877,500.0,0.00036029,60]
[392171383,1761231328206,515.02676945,0.00036029,60]
[392171384,1761231331841,748.94,0.00036029,60]
[392171385,1761231332419,748.94,0.00036029,60]
[392171386,1761231332665,748.94,0.00036029,60]
[392171387,1761231332932,748.94,0.00036029,60]
[392171388,1761231333227,748.94,0.00036029,60]
[392171389,1761231333475,748.94,0.00036029,60]
[392171390,1761231333766,748.94,0.00036029,60]
[392171391,1761231334029,748.94,0.00036029,60]
[392171392,1761231334284,748.94,0.00036029,60]
[392171393,1761231334671,748.94,0.00036029,60]
[392171394,1761231334870,748.94,0.00036029,60]
[392171395,1761231335144,748.94,0.00036029,60]
[392171396,1761231335500,748.94,0.00036029,60]
[392171397,1761231336879,748.94,0.00036029,60]
[392171398,1761231337130,748.94,0.00036029,60]
[392171399,1761231337370,748.94,0.00036029,60]
[392171400,1761231337729,748.94,0.00036029,60]
[392171401,1761231338019,748.94,0.00036029,60]
[392171402,1761231338223,748.94,0.00036029,60]
[392171403,1761231338470,748.94,0.00036029,60]
[392171404,1761231338706,748.94,0.00036029,60]
[392171405,1761231338948,748.94,0.00036029,60]
[392171406,1761231339214,748.94,0.00036029,60]
[392171407,1761231339463,748.95,0.00036029,60]
[392171408,1761231348054,500.0,0.00036029,60]
[392171409,1761231348398,500.0,0.00036029,60]
[392171410,1761231348672,333.33,0.00036029,60]
[392171411,1761231350414,500.0,0.00036029,60]
[392171412,1761231350658,500.0,0.00036029,60]
[392171413,1761231350922,461.75,0.00036029,60]
[392171414,1761231360591,500.0,0.00036029,60]
[392171415,1761231360918,500.0,0.00036029,60]
[392171416,1761231361403,500.0,0.00036029,60]
[392171417,1761231361716,500.0,0.00036029,60]
[392171418,1761231361943,500.0,0.00036029,60]
[392171419,1761231362183,500.0,0.00036029,60]
[392171420,1761231362433,500.0,0.00036029,60]
[392171421,1761231362662,500.0,0.00036029,60]
[392171422,1761231362897,500.0,0.00036029,60]
[392171423,1761231363140,500.0,0.00036029,60]
[392171424,1761231363382,500.0,0.00036029,60]
[392171425,1761231363610,500.0,0.00036029,60]
[392171426,1761231363860,467.3856,0.00036029,60]
[392171427,1761231367429,500.0,0.00036029,60]
[392171428,1761231367678,500.0,0.00036029,60]
[392171429,1761231367930,500.0,0.00036029,60]
[392171430,1761231368206,500.0,0.00036029,60]
[392171431,1761231368478,500.0,0.00036029,60]
[392171432,1761231368747,500.0,0.00036029,60]
[392171433,1761231368994,500.0,0.00036029,60]
[392171434,1761231369247,500.0,0.00036029,60]
[392171435,1761231369489,500.0,0.00036029,60]
[392171436,1761231369784,500.0,0.00036029,60]
[392171437,1761231370056,500.0,0.00036029,60]
[392171438,1761231370307,500.0,0.00036029,60]
[392171439,1761231370353,500.0,0.00036029,60]
[392171440,1761231370544,500.0,0.00036029,60]
[392171441,1761231370597,500.0,0.00036029,60]
[392171442,1761231370932,500.0,0.00036029,60]
[392171443,1761231370981,502.098572,0.00036029,60]
[392171444,1761231371036,500.0,0.00036029,60]
[392171445,1761231371284,500.00000001,0.00036029,60]
[392171446,1761231373144,266.76784474,0.00023535,2]
[392171447,1761231396262,500.0,0.00036029,60]
[392171448,1761231396491,500.0,0.00036029,60]
[392171449,1761231396781,500.0,0.00036029,60]
[392171450,1761231397246,500.0,0.00036029,60]
[392171451,1761231397485,500.0,0.00036029,60]
[392171452,1761231397826,500.0,0.00036029,60]
[392171453,1761231398170,500.0,0.00036029,60]
[392171454,1761231398361,500.0,0.00036029,60]
[392171455,1761231398631,500.0,0.00036029,60]
[392171456,1761231398907,500.0,0.00036029,60]
[392171457,1761231399164,500.0,0.00036029,60]
[392171458,1761231399407,500.0,0.00036029,60]
[392171459,1761231399663,500.0,0.00036029,60]
[392171460,1761231399909,500.0,0.00036029,60]
[392171461,1761231400155,500.0,0.00036029,60]
[392171462,1761231400381,500.0,0.00036029,60]
[392171463,1761231400634,500.0,0.00036029,60]
[392171464,1761231400867,500.0,0.00036029,60]
[392171465,1761231401827,500.0,0.00036029,60]
[392171466,1761231402078,500.36,0.00036029,60]
[392171467,1761231415254,392.33612908,0.00023535,2]
[392171468,1761231438330,500.0,0.00036029,60]
[392171469,1761231438569,321.40855609,0.00036029,60]
[392171470,1761231476271,510.14075,0.00036029,60]
[392171473,1761231498001,1000.0,0.00036029,120]
[392171474,1761231498251,1000.0,0.00036029,120]
[392171475,1761231498600,1000.0,0.00036029,120]
[392171476,1761231498873,1000.0,0.00036029,120]
[392171477,1761231499113,500.0,0.00036029,120]
[392171479,1761231518822,645.96686456,0.00023535,2]
[392171480,1761231541001,500.0,0.00036029,60]
[392171481,1761231541243,500.0,0.00036029,60]
[392171482,1761231541501,500.0,0.00036029,60]
[392171483,1761231541754,500.0,0.00036029,60]
[392171484,1761231542004,578.08,0.00036029,60]
[392171486,1761231569286,166.29442469,0.00023485,2]
[392171499,1761231633152,602.61685635,0.00023575,2]
[392171500,1761231639262,500.0,0.0003603,60]
[392171501,1761231639499,500.0,0.0003603,60]
[392171502,1761231639753,500.0,0.0003603,60]
[392171503,1761231640013,500.35790642,0.0003603,60]
[392171504,1761231643484,500.0,0.0003603,60]
[392171505,1761231643741,249.59393125,0.0003603,60]
[392171506,1761231651578,343.29411291,0.00023535,2]
[392171507,1761231682660,500.0,0.0003603,60]
[392171508,1761231686520,7582.73376767,0.00023499,2]
[392171509,1761231686545,10000.01,0.00023499,2]
[392171510,1761231686571,293783.17982222,0.00023499,2]
[392171511,1761231686601,58634.07641011,0.00023499,2]
[392171512,1761231705939,9768.7102655,0.0002269,2]
[392171513,1761231723467,500.0,0.0003603,60]
[392171514,1761231749546,231.2997345,0.00022629,2]
[392171515,1761231749570,616.957256,0.00022629,2]
[392171516,1761231751581,503.6099162,0.0003603,60]
[392171517,1761231754219,150.0,0.00020809,2]
[392171518,1761231754634,150.0,0.000218,2]
[392171519,1761231755050,197.6,0.00022791,2]
[392171520,1761231762700,1553.84380256,0.0002027,2]
[392171521,1761231788012,1941.86916794,0.00023515,2]
[392171522,1761231819902,500.0,0.0003603,120]
[392171523,1761231820156,500.0,0.0003603,120]
[392171524,1761231820405,500.0,0.0003603,120]
[392171525,1761231820648,500.0,0.0003603,120]
[392171526,1761231820883,500.0,0.0003603,120]
[392171527,1761231821140,500.0,0.0003603,120]
[392171528,1761231821389,500.0,0.0003603,120]
[392171529,1761231821652,500.0,0.0003603,120]
[392171530,1761231821907,500.0,0.0003603,120]
[392171531,1761231822293,500.0,0.0003603,120]
[392171532,1761231822541,500.0,0.0003603,120]
[392171533,1761231822814,500.0,0.0003603,120]
[392171534,1761231823058,500.0,0.0003603,120]
[392171535,1761231823311,500.0,0.0003603,120]
[392171536,1761231823579,199.99000003,0.0003603,120]
[392171537,1761231834254,150.0,0.00020799,2]
[392171538,1761231834763,155.39,0.00021789,2]
[392171539,1761231835305,233.09,0.0002278,2]
[392171540,1761231839290,150.0,0.00018831,30]
[392171541,1761231839798,150.0,0.00019728,30]
[392171542,1761231840228,150.0,0.00020625,30]
[392171543,1761231840658,150.0,0.00021521,30]
[392171544,1761231841175,166.49,0.00022418,30]
[392171545,1761231841703,199.79,0.00023315,30]
[392171546,1761231856017,3884.9797735,0.00023499,2]
[392171547,1761231856041,10000.01,0.00023499,2]
[392171548,1761231856066,10000.01,0.00023499,2]
[392171549,1761231856095,346115.0002265,0.00023499,2]
[392171551,1761231913270,295.22,0.00020606,2]
[392171552,1761231913690,590.44,0.00021587,2]
[392171553,1761231914145,885.66,0.00022568,2]
[392171554,1761231914619,1180.88,0.00023549,2]
[392171556,1761231993899,288.38,0.00020605,2]
[392171557,1761231994355,576.75,0.00021586,2]
[392171558,1761231994527,177.73689,0.00022651,2]
[392171559,1761231994768,865.13,0.00022567,2]
[392171560,1761231995194,1153.51,0.00023548,2]
[392171581,1761232062681,210.26057013,0.00036029,60]
[392171582,1761232069498,500.0,0.00036029,60]
[392171583,1761232069736,500.0,0.00036029,60]
[392171584,1761232069997,215.76,0.00036029,60]
[392171585,1761232074488,280.47,0.00020605,2]
[392171586,1761232074913,560.94,0.00021586,2]
[392171587,1761232075381,841.41,0.00022567,2]
[392171588,1761232075887,1121.88,0.00023548,2]
[392171589,1761232079293,150.0,0.00021478,30]
[392171590,1761232079725,240.4,0.00022501,30]
[392171591,1761232080261,360.6,0.00023524,30]
[392171592,1761232137607,430.60311,0.00023535,2]
[392171593,1761232137631,261.5368959,0.00023535,2]
[392171594,1761232154245,235.21,0.00020802,2]
[392171595,1761232154685,470.43,0.00021792,2]
[392171596,1761232155122,705.64,0.00022783,2]
[392171602,1761232158563,150.0,0.0001485,30]
[392171603,1761232158974,201.61,0.00015557,30]
[392171604,1761232159517,302.42,0.00016264,30]
[392171605,1761232159831,403.22,0.00016971,30]
[392171606,1761232160310,504.03,0.00017678,30]
[392171607,1761232160773,604.84,0.00018385,30]
[392171608,1761232161187,705.64,0.00019092,30]
[392171609,1761232161625,806.45,0.000198,30]
[392171610,1761232162111,907.26,0.00020507,30]
[392171633,1761232162566,958.8707858,0.00021214,30]
[392171714,1761232202067,516.77349168,0.00023535,2]
[392171715,1761232229256,150.0,0.00020817,2]
[392171716,1761232229736,293.38,0.00021808,2]
[392171717,1761232230148,440.06,0.00022799,2]
[392171760,1761232232660,-602.61685635,0.00023584,10]
[392171851,1761232233665,150.0,0.0002148,30]
[392171871,1761232234126,150.0,0.00022503,30]
[392171872,1761232234563,188.6,0.00023526,30]
[392171927,1761232238695,-18.08314365,0.00023584,10]
[392171929,1761232238706,-366.71675635,0.00023584,3]
[392171999,1761232239391,894.03882662,0.0002269,2]
[392172002,1761232239416,212.04596978,0.0002269,2]
[392172305,1761232243682,-683.33324365,0.00023584,3]
[392172306,1761232243693,-36.22230013,0.00023584,10]
[392172307,1761232243705,-481.02769987,0.00023584,10]
[392172308,1761232243714,-525.03,0.00023584,3]
[392172309,1761232243724,-431.04,0.00023584,10]
[392172310,1761232243734,-330.15657303,0.00023586,2]
[392172311,1761232243743,-300.0,0.00023587,2]
[392172312,1761232243752,-300.0,0.00023587,2]
[392172313,1761232243762,-527.81120727,0.00023587,2]
[392172595,1761232247111,-262.51,0.00023584,3]
[392172596,1761232247121,-639.18879273,0.00023587,2]
[392172597,1761232247131,-300.0,0.00023587,2]
[392172598,1761232247141,-300.0,0.00023588,2]
[392172599,1761232247151,-300.0,0.00023588,2]
[392172600,1761232247161,-1078.01,0.00023589,3]
[392172601,1761232247170,-195.48813935,0.00023593,2]
[392172602,1761232247180,-364.36925339,0.00023593,2]
[392172603,1761232247189,-471.72344163,0.00023593,2]
[392172604,1761232247199,-12141.48976384,0.00023594,2]
[392172605,1761232247212,-18910.68697879,0.00023594,2]
[392172606,1761232247223,-19735.52075537,0.00023594,2]
[392172607,1761232304201,705.33974439,0.00023535,2]
[392172608,1761232308249,150.0,0.00020333,2]
[392172609,1761232308669,258.45,0.00021301,2]
[392172610,1761232309076,387.68,0.00022269,2]
[392172611,1761232309605,516.9,0.00023237,2]
[392172612,1761232312767,150.0,0.00014645,30]
[392172613,1761232313172,150.0,0.00015343,30]
[392172614,1761232313788,166.15,0.0001604,30]
[392172615,1761232314088,221.53,0.00016738,30]
[392172616,1761232315046,276.91,0.00017435,30]
[392172617,1761232315522,332.3,0.00018132,30]
[392172618,1761232315998,387.68,0.0001883,30]
[392172619,1761232316466,443.06,0.00019527,30]
[392172620,1761232316933,498.44,0.00020225,30]
[392172621,1761232317358,399.2,0.00020922,30]
[392172622,1761232327853,605.62250511,0.00023535,2]
[392172623,1761232331141,2982.37942637,0.00023543,2]
[392172624,1761232339612,1156.32235435,0.00023543,2]
[392172625,1761232339636,704.24745162,0.00023543,2]
[392172626,1761232385102,150.0,0.00020348,2]
[392172627,1761232386177,155.66,0.00021317,2]
[392172628,1761232386596,233.49,0.00022286,2]
[392172629,1761232387008,311.32,0.00023255,2]
[392172630,1761232390021,150.0,0.00021051,30]
[392172631,1761232390613,150.0,0.00022053,30]
[392172632,1761232391023,150.0,0.00023056,30]
[392172634,1761232423368,-300.0,0.00023583,2]
[392172635,1761232423397,-706.3,0.00023584,3]
[392172636,1761232423427,-353.15,0.00023584,3]
[392172637,1761232423455,-176.58,0.00023584,3]
[392172638,1761232423485,-529.74,0.00023584,3]
[392172639,1761232423513,-330.31333908,0.00023584,2]
[392172640,1761232423543,-181.85,0.00023584,10]
[392172641,1761232423573,-328.89,0.00023584,10]
[392172642,1761232423602,-1080.25332184,0.00023584,3]
[392172643,1761232426237,-2025.85667816,0.00023584,3]
[392172644,1761232426268,-530.4,0.00023584,10]
[392172645,1761232426297,-1553.06,0.00023584,3]
[392172646,1761232426329,-183.36188441,0.00023591,2]
[392172647,1761232427579,442.0,0.00023584,10]
[392172648,1761232430796,776.53,0.00023584,3]